[Event "*** SCC Grand Prix: Titled Tuesday Blitz"]
[Site "Chess.com"]
[Date "2020.09.29"]
[Round "2"]
[White "Manukyan_Artak"]
[Black "Nils_03"]
[Result "0-1"]
[WhiteElo "2413"]
[BlackElo "2246"]
[TimeControl "180+1"]
[EndTime "10:17:55 PDT"]
[Termination "Nils_03 won on time"]

1. e4 {[%clk 0:03:00.9]} 1... c5 {[%clk 0:02:58.4]} 2. Nf3 {[%clk 0:02:59.5]}
2... Nf6 {[%clk 0:02:58.5]} 3. e5 {[%clk 0:02:56.4]} 3... Nd5 {[%clk 0:02:58.4]}
4. Nc3 {[%clk 0:02:57.3]} 4... Nxc3 {[%clk 0:02:58.4]} 5. dxc3 {[%clk
0:02:58.2]} 5... e6 {[%clk 0:02:58.6]} 6. Bf4 {[%clk 0:02:53.4]} 6... Nc6 {[%clk
0:02:57.7]} 7. Qd2 {[%clk 0:02:52.5]} 7... Qc7 {[%clk 0:02:55.6]} 8. O-O-O
{[%clk 0:02:51]} 8... b6 {[%clk 0:02:55.6]} 9. h4 {[%clk 0:02:43.7]} 9... Bb7
{[%clk 0:02:55.2]} 10. Bb5 {[%clk 0:02:32.1]} 10... h6 {[%clk 0:02:54.4]} 11.
Qe2 {[%clk 0:02:30.8]} 11... O-O-O {[%clk 0:02:53]} 12. Ba6 {[%clk 0:02:29.9]}
12... d6 {[%clk 0:02:49.1]} 13. Bxb7+ {[%clk 0:02:21.6]} 13... Kxb7 {[%clk
0:02:48.5]} 14. exd6 {[%clk 0:02:03.4]} 14... Bxd6 {[%clk 0:02:49.4]} 15. Bxd6
{[%clk 0:01:55.9]} 15... Rxd6 {[%clk 0:02:50.3]} 16. Rxd6 {[%clk 0:01:56.1]}
16... Qxd6 {[%clk 0:02:51.1]} 17. Rd1 {[%clk 0:01:56.5]} 17... Qf4+ {[%clk
0:02:48.2]} 18. Qe3 {[%clk 0:01:56]} 18... Qxe3+ {[%clk 0:02:46.2]} 19. fxe3
{[%clk 0:01:56.9]} 19... Rd8 {[%clk 0:02:39.2]} 20. g4 {[%clk 0:01:47.1]} 20...
Rxd1+ {[%clk 0:02:35.4]} 21. Kxd1 {[%clk 0:01:46.7]} 21... Kc7 {[%clk
0:02:36.3]} 22. g5 {[%clk 0:01:30.6]} 22... h5 {[%clk 0:02:33.3]} 23. b3 {[%clk
0:01:21.6]} 23... Kd6 {[%clk 0:02:32.7]} 24. Ke2 {[%clk 0:01:19.8]} 24... Ne5
{[%clk 0:02:31.9]} 25. Nd2 {[%clk 0:01:18.3]} 25... Ng6 {[%clk 0:02:27.6]} 26.
Nf3 {[%clk 0:01:16.4]} 26... e5 {[%clk 0:02:23.5]} 27. e4 {[%clk 0:01:08.8]}
27... Ke6 {[%clk 0:02:17.9]} 28. b4 {[%clk 0:00:56.8]} 28... f5 {[%clk
0:02:10.8]} 29. gxf6 {[%clk 0:00:55.5]} 29... Kxf6 {[%clk 0:01:55.2]} 30. bxc5
{[%clk 0:00:54.2]} 30... bxc5 {[%clk 0:01:55]} 31. Kd3 {[%clk 0:00:55.1]} 31...
Nf4+ {[%clk 0:01:52.6]} 32. Kc4 {[%clk 0:00:55]} 32... Ne6 {[%clk 0:01:52.7]}
33. Kd5 {[%clk 0:00:51.1]} 33... g5 {[%clk 0:01:32.8]} 34. hxg5+ {[%clk
0:00:49.5]} 34... Nxg5 {[%clk 0:01:33.7]} 35. Nxe5 {[%clk 0:00:48.3]} 35... h4
{[%clk 0:01:21.2]} 36. Ng4+ {[%clk 0:00:39]} 36... Ke7 {[%clk 0:01:19.4]} 37. e5
{[%clk 0:00:31.7]} 37... h3 {[%clk 0:01:16.5]} 38. c4 {[%clk 0:00:30.9]} 38...
Nf3 {[%clk 0:01:13.9]} 39. Ke4 {[%clk 0:00:25.1]} 39... h2 {[%clk 0:01:08.8]}
40. Nf2 {[%clk 0:00:22.9]} 40... Nd4 {[%clk 0:00:53.9]} 41. c3 {[%clk 0:00:11]}
41... Ne2 {[%clk 0:00:49]} 42. Kd5 {[%clk 0:00:09.2]} 42... Nxc3+ {[%clk
0:00:44.8]} 43. Kc6 {[%clk 0:00:06.6]} 43... Ke6 {[%clk 0:00:38.4]} 44. a3
{[%clk 0:00:05]} 44... a5 {[%clk 0:00:36]} 45. Kb6 {[%clk 0:00:04.7]} 45... a4
{[%clk 0:00:35.7]} 46. Ka5 {[%clk 0:00:04.9]} 46... Kxe5 {[%clk 0:00:35.2]} 47.
Ng4+ {[%clk 0:00:04.9]} 47... Kd4 {[%clk 0:00:34.8]} 48. Nxh2 {[%clk 0:00:05.8]}
48... Kxc4 {[%clk 0:00:34.6]} 49. Nf3 {[%clk 0:00:06.3]} 49... Kb3 {[%clk
0:00:33.2]} 50. Kb6 {[%clk 0:00:05.9]} 50... Ne4 {[%clk 0:00:29.2]} 51. Ne5
{[%clk 0:00:05]} 51... Kxa3 {[%clk 0:00:28.6]} 52. Kb5 {[%clk 0:00:05.1]} 52...
Kb3 {[%clk 0:00:26.3]} 53. Nc4 {[%clk 0:00:04.1]} 53... a3 {[%clk 0:00:25]} 54.
Nxa3 {[%clk 0:00:02.3]} 54... Kxa3 {[%clk 0:00:24.8]} 55. Kc4 {[%clk 0:00:03.2]}
55... Ka4 {[%clk 0:00:24.8]} 0-1

[Event "*** SCC Grand Prix: Titled Tuesday Blitz"]
[Site "Chess.com"]
[Date "2020.09.29"]
[Round "2"]
[White "jerry_77"]
[Black "Abdimalik_Abdisalimov"]
[Result "0-1"]
[WhiteElo "2481"]
[BlackElo "2738"]
[TimeControl "180+1"]
[EndTime "10:17:58 PDT"]
[Termination "Abdimalik_Abdisalimov won by resignation"]

1. e4 {[%clk 0:03:00.9]} 1... c5 {[%clk 0:03:00]} 2. Nf3 {[%clk 0:03:01.1]} 2...
d6 {[%clk 0:03:00.3]} 3. d4 {[%clk 0:03:01.6]} 3... cxd4 {[%clk 0:03:01.2]} 4.
Nxd4 {[%clk 0:03:02.4]} 4... Nf6 {[%clk 0:03:02.1]} 5. Nc3 {[%clk 0:02:59.9]}
5... a6 {[%clk 0:03:01.9]} 6. Be3 {[%clk 0:02:59.9]} 6... e5 {[%clk 0:03:01]} 7.
Nb3 {[%clk 0:03:00]} 7... Be6 {[%clk 0:02:58.9]} 8. h3 {[%clk 0:02:59.9]} 8...
Nbd7 {[%clk 0:02:56.9]} 9. f4 {[%clk 0:02:58.5]} 9... Rc8 {[%clk 0:02:57]} 10.
f5 {[%clk 0:02:55.6]} 10... Bc4 {[%clk 0:02:54.7]} 11. Bxc4 {[%clk 0:02:56]}
11... Rxc4 {[%clk 0:02:55.6]} 12. Nd2 {[%clk 0:02:56.7]} 12... Rxc3 {[%clk
0:02:52.8]} 13. bxc3 {[%clk 0:02:56.2]} 13... Qc7 {[%clk 0:02:53.7]} 14. c4
{[%clk 0:02:48.4]} 14... Be7 {[%clk 0:02:53.7]} 15. Qe2 {[%clk 0:02:42.9]} 15...
h5 {[%clk 0:02:50.7]} 16. Rb1 {[%clk 0:02:34.6]} 16... h4 {[%clk 0:02:47.9]} 17.
Rb3 {[%clk 0:02:25.5]} 17... Bd8 {[%clk 0:02:40.9]} 18. O-O {[%clk 0:02:24.3]}
18... Nc5 {[%clk 0:02:34.8]} 19. Bxc5 {[%clk 0:02:18.9]} 19... Qxc5+ {[%clk
0:02:35.7]} 20. Qf2 {[%clk 0:02:08.6]} 20... Qc8 {[%clk 0:01:50.5]} 21. Rfb1
{[%clk 0:02:05.9]} 21... b6 {[%clk 0:01:49.8]} 22. a4 {[%clk 0:01:53.7]} 22...
Nd7 {[%clk 0:01:05.6]} 23. a5 {[%clk 0:01:32.2]} 23... bxa5 {[%clk 0:01:02.5]}
24. Kh2 {[%clk 0:01:27.8]} 24... O-O {[%clk 0:01:00.9]} 25. g3 {[%clk 0:01:15]}
25... Nc5 {[%clk 0:00:59]} 26. Rf3 {[%clk 0:01:11.3]} 26... Bg5 {[%clk 0:00:50]}
27. gxh4 {[%clk 0:01:01.8]} 27... Bf4+ {[%clk 0:00:45.6]} 28. Rxf4 {[%clk
0:00:54]} 28... exf4 {[%clk 0:00:46.5]} 29. Rg1 {[%clk 0:00:54.1]} 29... Qd8
{[%clk 0:00:45.2]} 30. Qxf4 {[%clk 0:00:53.9]} 30... Qf6 {[%clk 0:00:38.5]} 31.
Nf3 {[%clk 0:00:54]} 31... Re8 {[%clk 0:00:37.3]} 32. e5 {[%clk 0:00:48.2]}
32... dxe5 {[%clk 0:00:36.8]} 33. Qe3 {[%clk 0:00:43.8]} 33... Qxf5 {[%clk
0:00:32.3]} 34. Rg5 {[%clk 0:00:34.1]} 34... Qxc2+ {[%clk 0:00:31]} 35. Rg2
{[%clk 0:00:33.7]} 35... Qxc4 {[%clk 0:00:25.9]} 36. Kh1 {[%clk 0:00:16.3]}
36... f6 {[%clk 0:00:21.2]} 37. h5 {[%clk 0:00:12.4]} 37... Qe4 {[%clk
0:00:20.6]} 38. Qxc5 {[%clk 0:00:08.1]} 38... Qxf3 {[%clk 0:00:20.5]} 39. Qc7
{[%clk 0:00:08.4]} 39... Qxh3+ {[%clk 0:00:14.1]} 40. Kg1 {[%clk 0:00:08.6]}
40... Qe3+ {[%clk 0:00:14.4]} 41. Kh1 {[%clk 0:00:07.9]} 41... Qh6 {[%clk
0:00:15.3]} 42. Qc6 {[%clk 0:00:06.8]} 42... Qxh5+ {[%clk 0:00:15.1]} 43. Kg1
{[%clk 0:00:04.2]} 43... Qf7 {[%clk 0:00:16]} 44. Qxa6 {[%clk 0:00:03]} 44... e4
{[%clk 0:00:16.3]} 45. Qxa5 {[%clk 0:00:03.3]} 45... e3 {[%clk 0:00:16.7]} 46.
Re2 {[%clk 0:00:04]} 46... f5 {[%clk 0:00:17]} 47. Kf1 {[%clk 0:00:04.5]} 47...
f4 {[%clk 0:00:17.5]} 48. Qc5 {[%clk 0:00:03.9]} 48... Qe6 {[%clk 0:00:14.3]}
49. Ke1 {[%clk 0:00:01.5]} 49... f3 {[%clk 0:00:14.4]} 50. Rb2 {[%clk
0:00:01.8]} 50... f2+ {[%clk 0:00:14.4]} 51. Kf1 {[%clk 0:00:02.3]} 51... Qh3+
{[%clk 0:00:14.7]} 0-1

[Event "*** SCC Grand Prix: Titled Tuesday Blitz"]
[Site "Chess.com"]
[Date "2020.09.29"]
[Round "2"]
[White "Rogarcia1"]
[Black "geordie_derraugh"]
[Result "0-1"]
[WhiteElo "2105"]
[BlackElo "2399"]
[TimeControl "180+1"]
[EndTime "10:17:58 PDT"]
[Termination "geordie_derraugh won by checkmate"]

1. e4 {[%clk 0:03:00.9]} 1... c5 {[%clk 0:02:56.7]} 2. Nf3 {[%clk 0:03:00.5]}
2... d6 {[%clk 0:02:56.5]} 3. d4 {[%clk 0:02:59.5]} 3... cxd4 {[%clk 0:02:56.7]}
4. Qxd4 {[%clk 0:02:59.6]} 4... Nc6 {[%clk 0:02:56.7]} 5. Qe3 {[%clk 0:02:59.6]}
5... g6 {[%clk 0:02:53.2]} 6. Be2 {[%clk 0:02:56.9]} 6... Bh6 {[%clk 0:02:46.5]}
7. Qc3 {[%clk 0:02:50.1]} 7... f6 {[%clk 0:02:18.7]} 8. Bxh6 {[%clk 0:02:34.8]}
8... Nxh6 {[%clk 0:02:19.6]} 9. O-O {[%clk 0:02:35]} 9... O-O {[%clk 0:02:16.8]}
10. Rd1 {[%clk 0:02:25.1]} 10... Nf7 {[%clk 0:02:11.3]} 11. Bc4 {[%clk
0:02:24.6]} 11... Kg7 {[%clk 0:02:02.7]} 12. Na3 {[%clk 0:02:17.4]} 12... a6
{[%clk 0:01:45.2]} 13. Bd5 {[%clk 0:02:07.6]} 13... Qc7 {[%clk 0:01:29.5]} 14.
Nd4 {[%clk 0:02:01.1]} 14... Nfd8 {[%clk 0:00:59.7]} 15. Nc4 {[%clk 0:00:58.6]}
15... Nxd4 {[%clk 0:00:33.1]} 16. Qxd4 {[%clk 0:00:57.3]} 16... Ne6 {[%clk
0:00:10.2]} 17. Qe3 {[%clk 0:00:50.9]} 17... Nc5 {[%clk 0:00:08.4]} 18. Nd2
{[%clk 0:00:37.9]} 18... e6 {[%clk 0:00:08]} 19. Bb3 {[%clk 0:00:37.8]} 19... b5
{[%clk 0:00:07.2]} 20. Rac1 {[%clk 0:00:36]} 20... Bb7 {[%clk 0:00:07.3]} 21. c4
{[%clk 0:00:34.3]} 21... b4 {[%clk 0:00:07.7]} 22. Bc2 {[%clk 0:00:33.1]} 22...
Qc6 {[%clk 0:00:03.1]} 23. Re1 {[%clk 0:00:24.4]} 23... Rad8 {[%clk 0:00:03.4]}
24. Nb3 {[%clk 0:00:23.2]} 24... Qb6 {[%clk 0:00:02.5]} 25. Nd4 {[%clk
0:00:21.9]} 25... Rfe8 {[%clk 0:00:02.4]} 26. b3 {[%clk 0:00:20.7]} 26... e5
{[%clk 0:00:02.7]} 27. Nf3 {[%clk 0:00:17.6]} 27... Qc7 {[%clk 0:00:03]} 28.
Rcd1 {[%clk 0:00:17.3]} 28... Ne6 {[%clk 0:00:03.4]} 29. Rd2 {[%clk 0:00:15.4]}
29... Nf4 {[%clk 0:00:03.6]} 30. Red1 {[%clk 0:00:14.6]} 30... Re6 {[%clk
0:00:04.1]} 31. g3 {[%clk 0:00:14.5]} 31... Nh5 {[%clk 0:00:04.1]} 32. Ne1
{[%clk 0:00:13]} 32... Rf8 {[%clk 0:00:03]} 33. Ng2 {[%clk 0:00:13]} 33... Rd8
{[%clk 0:00:02.8]} 34. f4 {[%clk 0:00:11.8]} 34... exf4 {[%clk 0:00:02.8]} 35.
gxf4 {[%clk 0:00:12]} 35... Rde8 {[%clk 0:00:03.3]} 36. e5 {[%clk 0:00:09.2]}
36... fxe5 {[%clk 0:00:02.4]} 37. fxe5 {[%clk 0:00:08.9]} 37... Rxe5 {[%clk
0:00:03.1]} 38. Qd4 {[%clk 0:00:08.4]} 38... Bxg2 {[%clk 0:00:02.6]} 39. Kxg2
{[%clk 0:00:05.2]} 39... Nf6 {[%clk 0:00:02.9]} 40. Qxd6 {[%clk 0:00:04.3]}
40... Qxd6 {[%clk 0:00:03.8]} 41. Rxd6 {[%clk 0:00:04]} 41... Re2+ {[%clk
0:00:04.7]} 42. Kg3 {[%clk 0:00:04.1]} 42... Rxc2 {[%clk 0:00:05.5]} 43. Rxa6
{[%clk 0:00:04]} 43... Rc3+ {[%clk 0:00:05.5]} 44. Kh4 {[%clk 0:00:03.6]} 44...
Re4+ {[%clk 0:00:05.5]} 45. Kg5 {[%clk 0:00:03.9]} 45... Rg4# {[%clk 0:00:06.3]}
0-1

[Event "*** SCC Grand Prix: Titled Tuesday Blitz"]
[Site "Chess.com"]
[Date "2020.09.29"]
[Round "2"]
[White "GelmanAlexander"]
[Black "Zhuu96"]
[Result "1-0"]
[WhiteElo "2538"]
[BlackElo "2806"]
[TimeControl "180+1"]
[EndTime "10:18:03 PDT"]
[Termination "GelmanAlexander won by resignation"]

1. d4 {[%clk 0:03:00.9]} 1... Nf6 {[%clk 0:02:16.7]} 2. Nc3 {[%clk 0:03:01]}
2... d6 {[%clk 0:02:15.3]} 3. e4 {[%clk 0:03:00.8]} 3... e5 {[%clk 0:02:14.1]}
4. Nf3 {[%clk 0:02:59.1]} 4... Nbd7 {[%clk 0:02:13.8]} 5. g4 {[%clk 0:02:59]}
5... Nxg4 {[%clk 0:02:12.8]} 6. Rg1 {[%clk 0:02:56.4]} 6... Ngf6 {[%clk
0:02:13]} 7. Bc4 {[%clk 0:02:55.2]} 7... h6 {[%clk 0:02:13.1]} 8. Be3 {[%clk
0:02:53.4]} 8... c6 {[%clk 0:02:12.9]} 9. Nh4 {[%clk 0:02:07.3]} 9... b5 {[%clk
0:01:47]} 10. Bb3 {[%clk 0:02:06.3]} 10... b4 {[%clk 0:01:47]} 11. Na4 {[%clk
0:02:03.4]} 11... d5 {[%clk 0:01:43.2]} 12. exd5 {[%clk 0:01:56.6]} 12... cxd5
{[%clk 0:01:37.9]} 13. Nf5 {[%clk 0:01:49.6]} 13... g6 {[%clk 0:01:37.4]} 14.
dxe5 {[%clk 0:01:41.2]} 14... Nxe5 {[%clk 0:01:33.8]} 15. Nd4 {[%clk 0:01:40.1]}
15... Bd6 {[%clk 0:01:28.2]} 16. Qe2 {[%clk 0:01:36.4]} 16... O-O {[%clk
0:01:25.4]} 17. O-O-O {[%clk 0:01:35]} 17... Re8 {[%clk 0:01:21.9]} 18. Kb1
{[%clk 0:01:16.7]} 18... Neg4 {[%clk 0:01:10.5]} 19. Qf3 {[%clk 0:01:03.9]}
19... Ne5 {[%clk 0:00:49]} 20. Qg2 {[%clk 0:01:01.7]} 20... Kh7 {[%clk
0:00:48.8]} 21. h4 {[%clk 0:00:55.2]} 21... Bg4 {[%clk 0:00:47.4]} 22. f3 {[%clk
0:00:52.6]} 22... Nxf3 {[%clk 0:00:47.6]} 23. Nxf3 {[%clk 0:00:47]} 23... Rxe3
{[%clk 0:00:47.7]} 24. Rdf1 {[%clk 0:00:42.8]} 24... Qe7 {[%clk 0:00:42.1]} 25.
Ng5+ {[%clk 0:00:40.2]} 25... hxg5 {[%clk 0:00:34]} 26. hxg5 {[%clk 0:00:41.1]}
26... Re8 {[%clk 0:00:33.8]} 27. a3 {[%clk 0:00:37.5]} 27... Rg3 {[%clk
0:00:31.6]} 28. Qh1+ {[%clk 0:00:30.3]} 28... Rh3 {[%clk 0:00:31.3]} 29. gxf6
{[%clk 0:00:28.3]} 29... Qe2 {[%clk 0:00:28.8]} 30. Qxd5 {[%clk 0:00:25.5]}
30... Qe6 {[%clk 0:00:22.6]} 31. Qg5 {[%clk 0:00:19.5]} 31... Rxb3 {[%clk
0:00:18.4]} 32. Rxg4 {[%clk 0:00:17.9]} 32... Rh3 {[%clk 0:00:12.9]} 33. Rh4+
{[%clk 0:00:18.3]} 33... Rxh4 {[%clk 0:00:13.1]} 34. Qxh4+ {[%clk 0:00:19.2]}
34... Kg8 {[%clk 0:00:13.6]} 35. Rh1 {[%clk 0:00:19.5]} 35... Bh2 {[%clk
0:00:11.5]} 36. Rxh2 {[%clk 0:00:17.9]} 36... Qe1+ {[%clk 0:00:11.7]} 37. Qxe1
{[%clk 0:00:17.8]} 37... Rxe1+ {[%clk 0:00:11.3]} 38. Ka2 {[%clk 0:00:18.7]}
38... bxa3 {[%clk 0:00:11.8]} 39. Kxa3 {[%clk 0:00:19.3]} 39... Rf1 {[%clk
0:00:11.5]} 40. c4 {[%clk 0:00:18]} 40... Rxf6 {[%clk 0:00:11.4]} 41. c5 {[%clk
0:00:18.7]} 41... g5 {[%clk 0:00:11.9]} 42. b4 {[%clk 0:00:18.1]} 42... a6
{[%clk 0:00:12.5]} 43. Nc3 {[%clk 0:00:17]} 43... g4 {[%clk 0:00:12.4]} 44. Nd5
{[%clk 0:00:16.9]} 44... Re6 {[%clk 0:00:12.7]} 45. Rg2 {[%clk 0:00:17.2]} 45...
f5 {[%clk 0:00:12.6]} 46. Ka4 {[%clk 0:00:16.8]} 46... Kf7 {[%clk 0:00:12.7]}
47. Ka5 {[%clk 0:00:17.1]} 47... Rc6 {[%clk 0:00:10.7]} 48. Ne3 {[%clk
0:00:16.1]} 48... Kf6 {[%clk 0:00:10.3]} 49. Rf2 {[%clk 0:00:16.7]} 49... Ke5
{[%clk 0:00:08.9]} 50. Nxf5 {[%clk 0:00:16.9]} 50... Rf6 {[%clk 0:00:08.5]} 51.
b5 {[%clk 0:00:11]} 51... axb5 {[%clk 0:00:08.2]} 52. Kxb5 {[%clk 0:00:11.9]}
52... Rxf5 {[%clk 0:00:07]} 53. Rxf5+ {[%clk 0:00:11.6]} 53... Kxf5 {[%clk
0:00:07.4]} 54. c6 {[%clk 0:00:12.5]} 54... Ke6 {[%clk 0:00:03.6]} 55. Kb6
{[%clk 0:00:12.4]} 55... g3 {[%clk 0:00:03.3]} 56. c7 {[%clk 0:00:12.8]} 1-0

[Event "*** SCC Grand Prix: Titled Tuesday Blitz"]
[Site "Chess.com"]
[Date "2020.09.29"]
[Round "2"]
[White "cassoulet"]
[Black "leoduarte"]
[Result "1-0"]
[WhiteElo "2648"]
[BlackElo "2305"]
[TimeControl "180+1"]
[EndTime "10:18:03 PDT"]
[Termination "cassoulet won on time"]

1. e4 {[%clk 0:03:00.9]} 1... c5 {[%clk 0:02:58.7]} 2. Nf3 {[%clk 0:03:00.4]}
2... Nc6 {[%clk 0:02:54.9]} 3. Bb5 {[%clk 0:02:59.3]} 3... g6 {[%clk 0:02:51.6]}
4. O-O {[%clk 0:02:58.6]} 4... Bg7 {[%clk 0:02:49.2]} 5. Re1 {[%clk 0:02:59.1]}
5... e5 {[%clk 0:02:34.2]} 6. c3 {[%clk 0:02:56.8]} 6... Nge7 {[%clk 0:02:31.7]}
7. d4 {[%clk 0:02:54.4]} 7... cxd4 {[%clk 0:02:29.8]} 8. cxd4 {[%clk 0:02:54.4]}
8... exd4 {[%clk 0:02:27]} 9. Bg5 {[%clk 0:02:44.5]} 9... h6 {[%clk 0:02:26.6]}
10. Bh4 {[%clk 0:02:43.9]} 10... O-O {[%clk 0:02:25.5]} 11. Na3 {[%clk
0:02:41.7]} 11... a6 {[%clk 0:02:09]} 12. Bc4 {[%clk 0:02:38.2]} 12... b5 {[%clk
0:01:55]} 13. Bb3 {[%clk 0:02:37.6]} 13... Bb7 {[%clk 0:01:47.5]} 14. Nc2 {[%clk
0:02:37.3]} 14... Qb6 {[%clk 0:01:33.2]} 15. e5 {[%clk 0:02:29.3]} 15... Nf5
{[%clk 0:01:27.2]} 16. Bf6 {[%clk 0:02:27.8]} 16... Bxf6 {[%clk 0:01:19.1]} 17.
exf6 {[%clk 0:02:28.7]} 17... Na5 {[%clk 0:01:19.6]} 18. Nfxd4 {[%clk
0:02:15.7]} 18... Nxb3 {[%clk 0:01:05.7]} 19. Nxf5 {[%clk 0:01:12.8]} 19... Nxa1
{[%clk 0:01:04.2]} 20. Nxh6+ {[%clk 0:00:47.3]} 20... Kh7 {[%clk 0:01:00.7]} 21.
Ng4 {[%clk 0:00:42.7]} 21... Qc6 {[%clk 0:00:37.3]} 22. Nce3 {[%clk 0:00:34.1]}
22... Nc2 {[%clk 0:00:23.9]} 23. Qxc2 {[%clk 0:00:26]} 23... Qxc2 {[%clk
0:00:20.9]} 24. Nxc2 {[%clk 0:00:26.9]} 24... Rfe8 {[%clk 0:00:21]} 25. Rd1
{[%clk 0:00:24.8]} 25... Be4 {[%clk 0:00:18.3]} 26. Nd4 {[%clk 0:00:21.2]} 26...
Bf5 {[%clk 0:00:16.5]} 27. Nxf5 {[%clk 0:00:17.8]} 27... gxf5 {[%clk 0:00:16.1]}
28. Ne3 {[%clk 0:00:18.7]} 28... f4 {[%clk 0:00:13.3]} 29. Nd5 {[%clk
0:00:18.4]} 29... f3 {[%clk 0:00:10.2]} 30. Nc7 {[%clk 0:00:17.8]} 30... fxg2
{[%clk 0:00:08.2]} 31. Nxa8 {[%clk 0:00:17.2]} 31... Rxa8 {[%clk 0:00:07.6]} 32.
Rxd7 {[%clk 0:00:17.7]} 32... Kg6 {[%clk 0:00:08]} 33. Rd6 {[%clk 0:00:18]}
33... a5 {[%clk 0:00:03.2]} 34. Kxg2 {[%clk 0:00:17.9]} 34... Rc8 {[%clk
0:00:03.2]} 35. Rb6 {[%clk 0:00:17.9]} 35... b4 {[%clk 0:00:03.3]} 36. Rb5
{[%clk 0:00:18.2]} 36... Rc2 {[%clk 0:00:03.7]} 37. Rxa5 {[%clk 0:00:18.1]}
37... Rxb2 {[%clk 0:00:04.1]} 38. Ra6 {[%clk 0:00:18.6]} 38... Rc2 {[%clk
0:00:02.9]} 39. Kg3 {[%clk 0:00:18.5]} 39... Rc3+ {[%clk 0:00:03.2]} 40. f3
{[%clk 0:00:18.9]} 40... Rc4 {[%clk 0:00:01.9]} 41. h4 {[%clk 0:00:19.2]} 41...
Rd4 {[%clk 0:00:02.2]} 42. Rb6 {[%clk 0:00:19]} 42... Rc4 {[%clk 0:00:02.3]} 43.
f4 {[%clk 0:00:19.2]} 43... Rc3+ {[%clk 0:00:02.5]} 44. Kg4 {[%clk 0:00:19.5]}
44... Rc4 {[%clk 0:00:02.8]} 45. h5+ {[%clk 0:00:19.7]} 45... Kh7 {[%clk
0:00:03]} 46. Kg5 {[%clk 0:00:19.1]} 46... Rc1 {[%clk 0:00:01.8]} 47. Rb7 {[%clk
0:00:18.9]} 47... Rg1+ {[%clk 0:00:01.8]} 48. Kf5 {[%clk 0:00:19.1]} 48... Kg8
{[%clk 0:00:02.1]} 49. Rb8+ {[%clk 0:00:18.3]} 49... Kh7 {[%clk 0:00:02.5]} 50.
Rxb4 {[%clk 0:00:19.2]} 50... Rh1 {[%clk 0:00:02.2]} 51. Rb7 {[%clk 0:00:19.3]}
51... Rxh5+ {[%clk 0:00:02.4]} 52. Kg4 {[%clk 0:00:19.6]} 52... Ra5 {[%clk
0:00:02]} 53. Rxf7+ {[%clk 0:00:19.6]} 53... Kg8 {[%clk 0:00:02.6]} 54. Rb7
{[%clk 0:00:19.1]} 54... Rxa2 {[%clk 0:00:02.9]} 55. Kf5 {[%clk 0:00:19.4]} 1-0

[Event "*** SCC Grand Prix: Titled Tuesday Blitz"]
[Site "Chess.com"]
[Date "2020.09.29"]
[Round "2"]
[White "dosto07"]
[Black "WIDBIFS"]
[Result "0-1"]
[WhiteElo "2319"]
[BlackElo "2622"]
[TimeControl "180+1"]
[EndTime "10:18:03 PDT"]
[Termination "WIDBIFS won on time"]

1. e4 {[%clk 0:03:00.9]} 1... c6 {[%clk 0:02:56.3]} 2. d4 {[%clk 0:02:59.8]}
2... g6 {[%clk 0:02:56.3]} 3. Nc3 {[%clk 0:02:59.4]} 3... Bg7 {[%clk 0:02:56.8]}
4. Nf3 {[%clk 0:02:59.4]} 4... d6 {[%clk 0:02:56.5]} 5. Be2 {[%clk 0:02:56.4]}
5... Nf6 {[%clk 0:02:57.1]} 6. O-O {[%clk 0:02:55.9]} 6... O-O {[%clk
0:02:57.8]} 7. e5 {[%clk 0:02:54.5]} 7... Nd5 {[%clk 0:02:57.3]} 8. Nxd5 {[%clk
0:02:49.4]} 8... cxd5 {[%clk 0:02:58.2]} 9. Bf4 {[%clk 0:02:48.6]} 9... dxe5
{[%clk 0:02:51.9]} 10. dxe5 {[%clk 0:02:47.3]} 10... Bg4 {[%clk 0:02:47.9]} 11.
h3 {[%clk 0:02:45.6]} 11... Bf5 {[%clk 0:02:39.5]} 12. Nd4 {[%clk 0:02:42.7]}
12... Nc6 {[%clk 0:02:33.6]} 13. Nxf5 {[%clk 0:02:30.7]} 13... gxf5 {[%clk
0:02:34.5]} 14. Bf3 {[%clk 0:02:29.5]} 14... e6 {[%clk 0:02:33.1]} 15. Re1
{[%clk 0:02:23.8]} 15... Qc7 {[%clk 0:02:31.2]} 16. Qe2 {[%clk 0:02:01.4]} 16...
Nd4 {[%clk 0:02:29.4]} 17. Qd3 {[%clk 0:02:00.4]} 17... Nxf3+ {[%clk 0:02:26.6]}
18. Qxf3 {[%clk 0:01:51]} 18... Qxc2 {[%clk 0:02:12.6]} 19. Qg3 {[%clk 0:01:43]}
19... Kh8 {[%clk 0:02:12.4]} 20. Rac1 {[%clk 0:01:34.6]} 20... Qxb2 {[%clk
0:02:11.5]} 21. Rc7 {[%clk 0:01:33.3]} 21... Rac8 {[%clk 0:02:06.3]} 22. Rec1
{[%clk 0:01:25.6]} 22... Rxc7 {[%clk 0:02:06]} 23. Rxc7 {[%clk 0:01:24.9]} 23...
Qxa2 {[%clk 0:01:59.6]} 24. Rxb7 {[%clk 0:01:22.6]} 24... Qa6 {[%clk 0:01:57.9]}
25. Re7 {[%clk 0:01:18]} 25... Qb6 {[%clk 0:01:44.8]} 26. Bg5 {[%clk 0:01:14.4]}
26... Qb8 {[%clk 0:01:22.2]} 27. f4 {[%clk 0:01:05.7]} 27... Qc8 {[%clk
0:00:57.6]} 28. Kh2 {[%clk 0:00:58.9]} 28... a5 {[%clk 0:00:55.5]} 29. Bf6
{[%clk 0:00:53.9]} 29... Bxf6 {[%clk 0:00:55.4]} 30. exf6 {[%clk 0:00:52.9]}
30... Rg8 {[%clk 0:00:53.9]} 31. Qf2 {[%clk 0:00:39.3]} 31... Qf8 {[%clk
0:00:46.2]} 32. Qa7 {[%clk 0:00:35.4]} 32... Qh6 {[%clk 0:00:37.7]} 33. Qd4
{[%clk 0:00:29.3]} 33... Qg6 {[%clk 0:00:36.1]} 34. Qb2 {[%clk 0:00:24.3]} 34...
Qg3+ {[%clk 0:00:34.8]} 35. Kh1 {[%clk 0:00:22.2]} 35... Qg6 {[%clk 0:00:21.9]}
36. Kh2 {[%clk 0:00:19.2]} 36... a4 {[%clk 0:00:22]} 37. Ra7 {[%clk 0:00:15.7]}
37... Qg3+ {[%clk 0:00:19.3]} 38. Kh1 {[%clk 0:00:14.6]} 38... a3 {[%clk
0:00:18.8]} 39. Rxa3 {[%clk 0:00:12.8]} 39... Qxf4 {[%clk 0:00:17.3]} 40. Ra7
{[%clk 0:00:11.4]} 40... Rc8 {[%clk 0:00:09.3]} 41. Ra1 {[%clk 0:00:08.9]} 41...
d4 {[%clk 0:00:08.5]} 42. Rd1 {[%clk 0:00:07.8]} 42... Rd8 {[%clk 0:00:06]} 43.
Qb6 {[%clk 0:00:07]} 43... Qd6 {[%clk 0:00:05]} 44. Qb2 {[%clk 0:00:05.7]} 44...
h6 {[%clk 0:00:05.1]} 45. Qd2 {[%clk 0:00:05.9]} 45... Kh7 {[%clk 0:00:05.3]}
46. Qd3 {[%clk 0:00:04.8]} 46... Rg8 {[%clk 0:00:05.4]} 47. Qe2 {[%clk
0:00:04.1]} 47... Rg6 {[%clk 0:00:04.9]} 48. Qh5 {[%clk 0:00:03.8]} 48... Rxf6
{[%clk 0:00:04.8]} 49. Rd3 {[%clk 0:00:03.3]} 49... Rg6 {[%clk 0:00:05.1]} 50.
Qh4 {[%clk 0:00:03.1]} 50... Qe5 {[%clk 0:00:05.3]} 51. Qf2 {[%clk 0:00:02]}
51... Qe4 {[%clk 0:00:05.2]} 52. Rxd4 {[%clk 0:00:01.9]} 52... Qb1+ {[%clk
0:00:05]} 53. Kh2 {[%clk 0:00:01.4]} 53... Qb8+ {[%clk 0:00:05.6]} 54. Qf4
{[%clk 0:00:01.6]} 54... Qxf4+ {[%clk 0:00:04.1]} 0-1